lending/lending_fUSD_20250121
["ID","MTS","AMOUNT","RATE_DAILY","PERIOD"]
[349832144,1737455441460,-505.36800237,0.00019664,2]
[349832146,1737455441470,-500.0,0.00019664,2]
[349832148,1737455441478,-500.0,0.00019664,2]
[349832150,1737455441488,-502.15293116,0.00019664,2]
[349832151,1737455441497,-500.0,0.00019664,2]
[349832153,1737455441509,-500.0,0.00019664,2]
[349832156,1737455441518,-504.00938514,0.00019664,2]
[349832157,1737455441528,-500.0,0.00019664,2]
[349832160,1737455441538,-497.79124294,0.00019664,2]
[349832161,1737455441547,-500.0,0.00019664,2]
[349832163,1737455441557,-505.40641816,0.00019664,2]
[349832164,1737455441566,-500.0,0.00019664,2]
[349832165,1737455441576,-500.0,0.00019664,2]
[349832166,1737455441585,-500.0,0.00019664,2]
[349832167,1737455441594,-500.89810482,0.00019664,2]
[349832168,1737455441604,-500.0,0.00019664,2]
[349832169,1737455441613,-500.0,0.00019664,2]
[349832170,1737455441622,-480.84182643,0.00019664,2]
[349832171,1737455441632,-500.0,0.00019664,2]
[349832172,1737455441644,-501.93746357,0.00019664,2]
[349832173,1737455441653,-500.97551727,0.00019664,2]
[349832174,1737455441662,-500.63251061,0.00019664,2]
[349832175,1737455441672,-502.85434523,0.00019664,2]
[349832176,1737455441681,-501.25341945,0.00019664,2]
[349832177,1737455441692,-500.0,0.00019664,2]
[349832178,1737455441701,-501.46859912,0.00019664,2]
[349832179,1737455441710,-501.46137926,0.00019664,2]
[349832180,1737455441719,-500.0,0.00019664,2]
[349832181,1737455441729,-500.0,0.00019664,2]
[349832182,1737455441738,-506.21361383,0.00019664,2]
[349832183,1737455441748,-500.60291124,0.00019664,2]
[349832184,1737455441757,-500.0,0.00019664,2]
[349832185,1737455441767,-501.89195282,0.00019664,2]
[349832186,1737455441776,-502.07596085,0.00019664,2]
[349832187,1737455441785,-500.0,0.00019664,2]
[349832188,1737455441794,-500.0,0.00019664,2]
[349832189,1737455441803,-501.20777659,0.00019664,2]
[349832190,1737455441813,-503.19094552,0.00019664,2]
[349832191,1737455441822,-500.0,0.00019664,2]
[349832192,1737455441831,-500.46968871,0.00019664,2]
[349832193,1737455441840,-385.73506073,0.00019664,2]
[349832194,1737455441849,-500.0,0.00019664,2]
[349832195,1737455441859,-501.8831737,0.00019664,2]
[349832196,1737455441868,-502.07458601,0.00019664,2]
[349832197,1737455441877,-500.0,0.00019664,2]
[349832198,1737455441887,-502.3722446,0.00019664,2]
[349832199,1737455441897,-505.40496278,0.00019664,2]
[349832200,1737455441906,-502.11225382,0.00019664,2]
[349832201,1737455441916,-500.0,0.00019664,2]
[349832202,1737455441925,-500.0,0.00019664,2]
[349832203,1737455441935,-500.0,0.00019664,2]
[349832204,1737455441944,-500.0,0.00019664,2]
[349832205,1737455441954,-500.0,0.00019664,2]
[349832206,1737455441963,-503.57305854,0.00019664,2]
[349832207,1737455441973,-500.0,0.00019664,2]
[349832208,1737455441983,-501.58806893,0.00019664,2]
[349832209,1737455441992,-500.0,0.00019664,2]
[349832210,1737455442002,-500.50589274,0.00019664,2]
[349832211,1737455442012,-500.0,0.00019664,2]
[349832212,1737455442022,-500.0,0.00019664,2]
[349832213,1737455442032,-500.0,0.00019664,2]
[349832214,1737455442042,-500.0,0.00019664,2]
[349832215,1737455442051,-500.88736544,0.00019664,2]
[349832216,1737455442060,-502.18488307,0.00019664,2]
[349832217,1737455442070,-507.52784809,0.00019664,2]
[349832218,1737455442080,-500.0,0.00019664,2]
[349832219,1737455442089,-500.0,0.00019664,2]
[349832220,1737455442099,-500.0,0.00019664,2]
[349832221,1737455442108,-501.48596407,0.00019664,2]
[349832222,1737455442118,-500.0,0.00019664,2]
[349832223,1737455442128,-502.19243508,0.00019664,2]
[349832224,1737455442138,-500.0,0.00019664,2]
[349832225,1737455442147,-723.84,0.00019664,2]
[349832226,1737455442158,-502.12471936,0.00019664,2]
[349832227,1737455442167,-506.37270791,0.00019664,2]
[349832228,1737455442177,-500.0,0.00019664,2]
[349832229,1737455442187,-500.0,0.00019664,2]
[349832230,1737455442196,-1160.98,0.00019664,2]
[349832231,1737455442205,-500.0,0.00019664,2]
[349832232,1737455442215,-500.0,0.00019664,2]
[349832233,1737455442224,-500.0,0.00019664,2]
[349832234,1737455442233,-502.67521277,0.00019664,2]
[349832235,1737455442244,-500.0,0.00019664,2]
[349832236,1737455442254,-504.90999488,0.00019664,2]
[349832237,1737455442263,-500.0,0.00019664,2]
[349832239,1737455442272,-500.0,0.00019664,2]
[349832241,1737455442283,-500.0,0.00019664,2]
[349832242,1737455442292,-724.95,0.00019664,2]
[349832243,1737455442301,-500.0,0.00019664,2]
[349832244,1737455442310,-500.0,0.00019664,2]
[349832245,1737455442319,-758.65,0.00019664,2]
[349832246,1737455442329,-500.0,0.00019664,2]
[349832247,1737455442338,-1973.65,0.00019664,2]
[349832248,1737455442347,-500.0,0.00019664,2]
[349832249,1737455442357,-500.0,0.00019664,2]
[349832250,1737455442367,-500.0,0.00019664,2]
[349832251,1737455442376,-763.12,0.00019664,2]
[349832252,1737455442388,-500.0,0.00019664,2]
[349832253,1737455442397,-500.0,0.00019664,2]
[349832254,1737455442407,-500.0,0.00019664,2]
[349832255,1737455442417,-1105.07,0.00019664,2]
[349832257,1737455442431,-500.0,0.00019664,2]
[349832258,1737455442440,-506.29752036,0.00019664,2]
[349832259,1737455442450,-500.0,0.00019664,2]
[349832261,1737455442459,-807.04,0.00019664,2]
[349832264,1737455442470,-500.0,0.00019664,2]
[349832267,1737455442479,-196.2463034,0.00019664,2]
[349832270,1737455442488,-500.0,0.00019664,2]
[349832273,1737455442498,-508.91100665,0.00019664,2]
[349832275,1737455442509,-500.0,0.00019664,2]
[349832279,1737455442519,-500.0,0.00019664,2]
[349832283,1737455442528,-500.0,0.00019664,2]
[349832287,1737455442537,-500.0,0.00019664,2]
[349832289,1737455442547,-997.87,0.00019664,2]
[349832290,1737455442556,-500.0,0.00019664,2]
[349832291,1737455442565,-505.88760034,0.00019664,2]
[349832292,1737455442575,-504.43037415,0.00019664,2]
[349832293,1737455442584,-500.0,0.00019664,2]
[349832294,1737455442594,-500.0,0.00019664,2]
[349832295,1737455442603,-500.0,0.00019664,2]
[349832296,1737455442613,-504.1254782,0.00019664,2]
[349832297,1737455442622,-500.0,0.00019664,2]
[349832298,1737455442632,-500.0,0.00019664,2]
[349832299,1737455442642,-513.12350146,0.00019664,2]
[349832300,1737455442652,-500.0,0.00019664,2]
[349832301,1737455442661,-572.94454462,0.00019664,2]
[349832302,1737455442671,-500.0,0.00019664,2]
[349832303,1737455442680,-500.0,0.00019664,2]
[349832304,1737455442690,-500.0,0.00019664,2]
[349832305,1737455442699,-501.04287816,0.00019664,2]
[349832306,1737455442709,-386.47540251,0.00019664,2]
[349832307,1737455442718,-501.40866094,0.00019664,2]
[349832308,1737455442728,-634.09,0.00019664,2]
[349832309,1737455442737,-462.91635604,0.00019664,2]
[349832310,1737455442748,-500.0,0.00019664,2]
[349832311,1737455442758,-500.0,0.00019664,2]
[349832312,1737455442767,-502.03393266,0.00019664,2]
[349832313,1737455442776,-506.07791227,0.00019664,2]
[349832314,1737455442786,-500.0,0.00019664,2]
[349832315,1737455442795,-501.7012609,0.00019664,2]
[349832316,1737455442805,-505.19454437,0.00019664,2]
[349832317,1737455442815,-500.0,0.00019664,2]
[349832318,1737455442824,-500.80876833,0.00019664,2]
[349832319,1737455442834,-500.0,0.00019664,2]
[349832320,1737455442844,-339.15809145,0.00019664,2]
[349832321,1737455442853,-500.0,0.00019664,2]
[349832322,1737455442862,-500.0,0.00019664,2]
[349832323,1737455442871,-500.0,0.00019664,2]
[349832324,1737455442880,-500.0,0.00019664,2]
[349832325,1737455442892,-212.71857398,0.00019664,2]
[349832326,1737455442901,-500.0,0.00019664,2]
[349832327,1737455442911,-500.0,0.00019664,2]
[349832328,1737455442920,-522.9,0.00019664,2]
[349832329,1737455442930,-506.66584519,0.00019664,2]
[349832330,1737455442939,-506.47296881,0.00019664,2]
[349832331,1737455442948,-500.0,0.00019664,2]
[349832332,1737455442959,-501.83043481,0.00019664,2]
[349832333,1737455442968,-500.0,0.00019664,2]
[349832334,1737455442978,-500.0,0.00019664,2]
[349832335,1737455442987,-505.7063975,0.00019664,2]
[349832336,1737455442996,-500.0,0.00019664,2]
[349832338,1737455443006,-500.88743826,0.00019664,2]
[349832340,1737455443015,-500.0,0.00019664,2]
[349832342,1737455443024,-500.73728549,0.00019664,2]
[349832344,1737455443034,-500.0,0.00019664,2]
[349832346,1737455443043,-500.0,0.00019664,2]
[349832348,1737455443052,-501.29731424,0.00019664,2]
[349832350,1737455443062,-632.31,0.00019664,2]
[349832352,1737455443072,-500.79693013,0.00019664,2]
[349832354,1737455443082,-500.44660523,0.00019664,2]
[349832356,1737455443092,-500.53294558,0.00019664,2]
[349832358,1737455443102,-500.0,0.00019664,2]
[349832360,1737455443111,-500.0,0.00019664,2]
[349832362,1737455443121,-537.56,0.00019664,2]
[349832364,1737455443131,-500.0,0.00019664,2]
[349832366,1737455443141,-500.0,0.00019664,2]
[349832368,1737455443151,-500.0,0.00019664,2]
[349832369,1737455443161,-497.76867798,0.00019664,2]
[349832372,1737455443171,-500.0,0.00019664,2]
[349832373,1737455443181,-502.19760091,0.00019664,2]
[349832376,1737455443190,-924.73,0.00019664,2]
[349832378,1737455443200,-500.0,0.00019664,2]
[349832379,1737455443210,-500.0,0.00019664,2]
[349832381,1737455443219,-500.0,0.00019664,2]
[349832383,1737455443228,-500.0,0.00019664,2]
[349832384,1737455443239,-567.68994935,0.00019664,2]
[349832385,1737455443417,-638.62,0.00019664,2]
[349832386,1737455443430,-507.25148851,0.00019664,2]
[349832387,1737455443441,-500.0,0.00019664,2]
[349832388,1737455443451,-500.0,0.00019664,2]
[349832389,1737455443460,-500.0,0.00019664,2]
[349832390,1737455443470,-1669.61,0.00019664,2]
[349832391,1737455443480,-500.0,0.00019664,2]
[349832392,1737455443490,-500.0,0.00019664,2]
[349832393,1737455443500,-2780.73,0.00019664,2]
[349832394,1737455443511,-500.0,0.00019665,2]
[349832395,1737455443520,-500.0,0.00019665,2]
[349832396,1737455443530,-896.64,0.00019726,2]
[349832397,1737455443540,-802.54,0.00019726,2]
[349832399,1737455443549,-599.33,0.00019726,2]
[349832401,1737455443559,-500.0,0.00019726,2]
[349832403,1737455443569,-1130.76,0.00019726,2]
[349832404,1737455443579,-1764.8,0.00019726,2]
[349832405,1737455443588,-500.0,0.00019726,2]
[349832406,1737455443597,-1170.87,0.00019726,2]
[349832407,1737455443607,-1935.46,0.00019726,2]
[349832408,1737455443616,-500.0,0.00019726,2]
[349832409,1737455443626,-1397.15,0.00019726,2]
[349832410,1737455443636,-888.75,0.00019726,2]
[349832411,1737455443647,-500.0,0.00019726,2]
[349832412,1737455443657,-997.88,0.00019726,2]
[349832413,1737455443667,-709.63,0.00019726,2]
[349832414,1737455443677,-902.94,0.00019726,2]
[349832415,1737455443687,-2544.76,0.00019726,2]
[349832416,1737455443696,-850.52,0.00019726,2]
[349832417,1737455443707,-2292.3,0.00019726,2]
[349832418,1737455443717,-500.0,0.00019726,2]
[349832419,1737455443727,-500.0,0.00019726,2]
[349832420,1737455443737,-321.87749717,0.00019726,2]
[349832421,1737455443748,-543.61,0.00019726,2]
[349832422,1737455443758,-500.0,0.00019726,2]
[349832423,1737455443769,-500.0,0.00019726,2]
[349832424,1737455443779,-500.0,0.00019726,2]
[349832425,1737455443789,-500.0,0.00019726,2]
[349832426,1737455443799,-1534.04,0.00019726,2]
[349832427,1737455443810,-500.0,0.00019726,2]
[349832428,1737455443820,-500.0,0.00019726,2]
[349832429,1737455443830,-500.0,0.00019726,2]
[349832430,1737455443840,-1237.06,0.00019726,2]
[349832431,1737455443849,-500.0,0.00019726,2]
[349832432,1737455443861,-500.0,0.00019726,2]
[349832433,1737455443872,-500.0,0.00019726,2]
[349832434,1737455443882,-500.0,0.00019726,2]
[349832435,1737455443894,-396.09643431,0.00019753,2]
[349832436,1737455443904,-206.70261586,0.00019855,2]
[349832437,1737455443914,-500.0,0.0001989,2]
[349832438,1737455443924,-1799.36,0.00019897,2]
[349832439,1737455443934,-526.81761601,0.00019897,2]
[349832440,1737455443944,-500.0,0.00019897,2]
[349832441,1737455443954,-2685.0,0.00019897,2]
[349832442,1737455443964,-1519.25,0.00019897,2]
[349832443,1737455443974,-500.0,0.00019897,2]
[349832444,1737455443984,-1429.36,0.00019897,2]
[349832445,1737455443994,-500.0,0.00019897,2]
[349832446,1737455444003,-500.0,0.00019897,2]
[349832447,1737455444013,-572.22,0.00019897,2]
[349832448,1737455444023,-700.0,0.000199,7]
[349832449,1737455444033,-1430.76757568,0.000199,7]
[349832450,1737455444043,-250.0,0.000199,2]
[349832451,1737455444053,-250.0,0.000199,2]
[349832452,1737455444063,-424.2,0.000199,2]
[349832453,1737455444074,-151.0,0.00019902,2]
[349832454,1737455444084,-30000.0,0.00019922,2]
[349832455,1737455444094,-1208.63,0.00019936,2]
[349832456,1737455444104,-720.29,0.00019936,2]
[349832457,1737455444114,-1135.55,0.00019936,2]
[349832458,1737455444123,-500.0,0.00019936,2]
[349832459,1737455444133,-5596.85,0.00019936,2]
[349832460,1737455444145,-500.0,0.00019936,2]
[349832461,1737455444155,-406.37811288,0.00019936,2]
[349832462,1737455444165,-500.0,0.00019936,2]
[349832463,1737455444175,-516.225877,0.00019936,2]
[349832464,1737455444185,-500.0,0.00019936,2]
[349832465,1737455444195,-786.72,0.00019936,2]
[349832466,1737455444204,-771.63,0.00019936,2]
[349832467,1737455444214,-543.76,0.00019936,2]
[349832468,1737455444223,-1177.6,0.00019936,2]
[349832469,1737455444233,-798.31,0.00019936,2]
[349832470,1737455444243,-358.333386,0.00019936,2]
[349832471,1737455444254,-1292.4,0.00019936,2]
[349832472,1737455444264,-941.38,0.00019936,2]
[349832473,1737455444274,-500.0,0.00019936,2]
[349832474,1737455444284,-500.0,0.00019936,2]
[349832475,1737455444294,-2147.55,0.00019936,2]
[349832476,1737455444303,-1700.18,0.00019936,2]
[349832477,1737455444313,-801.99,0.00019936,2]
[349832478,1737455444322,-987.08,0.00019936,2]
[349832479,1737455444331,-1814.27,0.00019936,2]
[349832480,1737455444341,-2064.99,0.00019936,2]
[349832481,1737455444350,-500.0,0.00019936,2]
[349832482,1737455444360,-500.0,0.00019936,2]
[349832483,1737455444369,-551.16,0.00019936,2]
[349832484,1737455444379,-905.56,0.00019936,2]
[349832485,1737455444389,-2404.18,0.00019936,2]
[349832486,1737455444399,-841.45,0.00019936,2]
[349832487,1737455444408,-844.09,0.00019936,2]
[349832488,1737455444418,-711.51,0.00019936,2]
[349832489,1737455444430,-934.55,0.00019936,2]
[349832490,1737455444439,-908.64,0.00019936,2]
[349832491,1737455444448,-500.0,0.00019937,2]
[349832492,1737455444458,-500.0,0.00019937,2]
[349832493,1737455444469,-589.5668623,0.00019937,2]
[349832494,1737455444479,-500.0,0.00019937,2]
[349832495,1737455444488,-500.0,0.00019937,2]
[349832496,1737455444498,-500.0,0.00019937,2]
[349832497,1737455444508,-603.42329222,0.00019937,2]
[349832498,1737455444518,-500.0,0.00019937,2]
[349832499,1737455444527,-260.64979137,0.00019937,2]
[349832500,1737455444537,-500.0,0.00019937,2]
[349832501,1737455444547,-500.0,0.00019937,2]
[349832502,1737455444556,-500.0,0.00019937,2]
[349832503,1737455444565,-500.0,0.00019937,2]
[349832504,1737455444575,-500.0,0.00019937,2]
[349832505,1737455444584,-500.0,0.00019937,2]
[349832506,1737455444594,-500.0,0.00019938,2]
[349832507,1737455444603,-500.0,0.00019938,2]
[349832508,1737455444613,-589.49,0.00019938,2]
[349832509,1737455444623,-511.08,0.00019938,2]
[349832510,1737455444632,-500.0,0.00019938,2]
[349832511,1737455444642,-500.0,0.00019938,2]
[349832512,1737455444652,-500.0,0.00019938,2]
[349832513,1737455444661,-500.0,0.00019938,2]
[349832514,1737455444671,-500.0,0.00019938,2]
[349832515,1737455444682,-500.0,0.00019938,2]
[349832516,1737455444691,-500.0,0.00019938,2]
[349832517,1737455444701,-500.0,0.00019938,2]
[349832518,1737455444710,-500.0,0.00019938,2]
[349832519,1737455444719,-500.0,0.00019938,2]
[349832520,1737455444729,-500.0,0.00019938,2]
[349832521,1737455444739,-500.0,0.00019938,2]
[349832522,1737455444749,-500.0,0.00019938,2]
[349832523,1737455444758,-500.0,0.00019938,2]
[349832524,1737455444767,-500.0,0.00019938,2]
[349832525,1737455444777,-500.0,0.00019938,2]
[349832526,1737455444786,-500.0,0.00019938,2]
[349832527,1737455444795,-500.0,0.00019938,2]
[349832528,1737455444804,-500.0,0.00019938,2]
[349832529,1737455444814,-500.0,0.00019938,2]
[349832530,1737455444823,-500.0,0.00019938,2]
[349832531,1737455444833,-500.0,0.00019938,2]
[349832532,1737455444843,-500.0,0.00019938,2]
[349832533,1737455444852,-500.0,0.00019938,2]
[349832534,1737455444861,-500.0,0.00019938,2]
[349832535,1737455444871,-500.0,0.00019938,2]
[349832536,1737455444880,-500.0,0.00019938,2]
[349832537,1737455444891,-500.0,0.00019938,2]
[349832538,1737455444902,-500.0,0.00019938,2]
[349832539,1737455444912,-606.50136615,0.00019938,2]
[349832540,1737455444922,-500.0,0.00019938,2]
[349832541,1737455444933,-723.84,0.00019938,2]
[349832542,1737455444944,-509.36,0.00019938,2]
[349832543,1737455444955,-500.0,0.00019938,2]
[349832544,1737455444967,-1160.98,0.00019938,2]
[349832545,1737455444978,-500.0,0.00019938,2]
[349832546,1737455444988,-500.0,0.00019938,2]
[349832547,1737455444999,-500.0,0.00019938,2]
[349832548,1737455445009,-500.0,0.00019938,2]
[349832549,1737455445019,-254.87,0.00019938,2]
[349832550,1737455445030,-724.95,0.00019938,2]
[349832551,1737455445040,-500.0,0.00019938,2]
[349832552,1737455445050,-500.0,0.00019938,2]
[349832553,1737455445059,-313.06,0.00019938,2]
[349832554,1737455445070,-1973.65,0.00019938,2]
[349832555,1737455445079,-500.0,0.00019938,2]
[349832556,1737455445090,-518.49359378,0.00019938,2]
[349832557,1737455445101,-500.0,0.00019938,2]
[349832558,1737455445111,-763.12,0.00019938,2]
[349832559,1737455445121,-500.0,0.00019938,2]
[349832560,1737455445131,-500.0,0.00019938,2]
[349832561,1737455445143,-500.0,0.00019938,2]
[349832562,1737455445154,-1105.07,0.00019938,2]
[349832563,1737455445164,-500.0,0.00019938,2]
[349832564,1737455445173,-500.0,0.00019938,2]
[349832565,1737455445183,-807.04,0.00019938,2]
[349832566,1737455445194,-500.0,0.00019938,2]
[349832567,1737455445204,-500.0,0.00019938,2]
[349832568,1737455445214,-500.0,0.00019938,2]
[349832569,1737455445224,-500.0,0.00019938,2]
[349832570,1737455445234,-500.0,0.00019938,2]
[349832571,1737455445245,-500.0,0.00019938,2]
[349832572,1737455445255,-997.87,0.00019938,2]
[349832573,1737455445265,-500.0,0.00019938,2]
[349832574,1737455445275,-500.0,0.00019938,2]
[349832575,1737455445286,-500.0,0.00019938,2]
[349832576,1737455445296,-500.0,0.00019938,2]
[349832577,1737455445307,-500.0,0.00019938,2]
[349832578,1737455445316,-500.0,0.00019938,2]
[349832579,1737455445325,-500.0,0.00019938,2]
[349832580,1737455445334,-500.0,0.00019938,2]
[349832581,1737455445344,-634.09,0.00019938,2]
[349832582,1737455445354,-500.0,0.00019938,2]
[349832583,1737455445364,-500.0,0.00019938,2]
[349832585,1737455445374,-500.0,0.00019938,2]
[349832586,1737455445384,-500.0,0.00019938,2]
[349832587,1737455445396,-500.0,0.00019938,2]
[349832588,1737455445405,-500.0,0.00019938,2]
[349832589,1737455445415,-500.0,0.00019938,2]
[349832590,1737455445424,-522.9,0.00019938,2]
[349832591,1737455445437,-500.0,0.00019938,2]
[349832593,1737455445446,-500.0,0.00019938,2]
[349832594,1737455445456,-500.0,0.00019938,2]
[349832595,1737455445466,-500.0,0.00019938,2]
[349832596,1737455445476,-500.0,0.00019938,2]
[349832597,1737455445486,-500.0,0.00019938,2]
[349832598,1737455445496,-632.31,0.00019938,2]
[349832599,1737455445506,-500.0,0.00019938,2]
[349832601,1737455445515,-537.56,0.00019938,2]
[349832603,1737455445525,-150.09665606,0.00019938,2]
[349832605,1737455445534,-500.0,0.00019938,2]
[349832607,1737455445543,-500.0,0.00019938,2]
[349832608,1737455445553,-924.73,0.00019938,2]
[349832609,1737455445563,-500.0,0.00019938,2]
[349832610,1737455445573,-500.0,0.00019938,2]
[349832611,1737455445582,-638.62,0.00019938,2]
[349832612,1737455445592,-500.0,0.00019938,2]
[349832613,1737455445602,-500.0,0.00019938,2]
[349832614,1737455445612,-1669.61,0.00019938,2]
[349832615,1737455445622,-500.0,0.00019938,2]
[349832616,1737455445632,-500.0,0.00019938,2]
[349832617,1737455445641,-2780.73,0.00019938,2]
[349832618,1737455445652,-500.0,0.00019939,2]
[349832619,1737455445662,-161.91,0.00019952,2]
[349832620,1737455445672,-161.91,0.00019966,2]
[349832621,1737455445682,-500.0,0.00019973,2]
[349832622,1737455445691,-501.36012623,0.00019973,2]
[349832623,1737455445701,-161.91,0.0001998,2]
[349832624,1737455445710,-161.91,0.00019995,2]
[349832625,1737455445720,-24970.25025289,0.0002,2]
[349832626,1737455445729,-46487.08333518,0.0002,2]
[349832627,1737455445739,-68930.39042611,0.0002,2]
[349832628,1737455445748,-144816.44894847,0.0002,3]
[349832629,1737455445758,-52904.38847641,0.0002,14]
[349832630,1737455445768,-896.64,0.0002,2]
[349832631,1737455445777,-802.54,0.0002,2]
[349832632,1737455445787,-599.33,0.0002,2]
[349832633,1737455445796,-500.0,0.0002,2]
[349832634,1737455445806,-1130.76,0.0002,2]
[349832635,1737455445816,-1764.8,0.0002,2]
[349832636,1737455445826,-343.82145895,0.0002,2]
[349832637,1737455445888,-1170.87,0.0002,2]
[349832639,1737455445899,-1935.46,0.0002,2]
[349832640,1737455445909,-500.0,0.0002,2]
[349832642,1737455445918,-1397.15,0.0002,2]
[349832644,1737455445927,-888.75,0.0002,2]
[349832647,1737455445938,-500.0,0.0002,2]
[349832648,1737455445947,-997.88,0.0002,2]
[349832650,1737455445957,-709.63,0.0002,2]
[349832652,1737455445967,-902.94,0.0002,2]
[349832655,1737455445976,-2544.76,0.0002,2]
[349832657,1737455445986,-850.52,0.0002,2]
[349832659,1737455445996,-2292.3,0.0002,2]
[349832661,1737455446006,-500.0,0.0002,2]
[349832663,1737455446016,-500.0,0.0002,2]
[349832665,1737455446025,-543.61,0.0002,2]
[349832667,1737455446035,-234.40756801,0.0002,2]
[349832670,1737455446045,-500.0,0.0002,2]
[349832673,1737455446054,-500.0,0.0002,2]
[349832674,1737455446064,-500.0,0.0002,2]
[349832676,1737455446076,-1534.04,0.0002,2]
[349832678,1737455446086,-500.0,0.0002,2]
[349832680,1737455446095,-500.0,0.0002,2]
[349832682,1737455446105,-500.0,0.0002,2]
[349832684,1737455446114,-1237.06,0.0002,2]
[349832687,1737455446123,-500.0,0.0002,2]
[349832688,1737455446133,-500.0,0.0002,2]
[349832690,1737455446142,-500.0,0.0002,2]
[349832692,1737455446150,-500.0,0.0002,2]
[349832694,1737455446159,-161.91,0.00020009,2]
[349832696,1737455446168,-161.91,0.00020023,2]
[349832698,1737455446178,-161.91,0.00020037,2]
[349832700,1737455446187,-161.91,0.00020052,2]
[349832702,1737455446196,-771.69,0.00020158,2]
[349832704,1737455446205,-1799.36,0.00020171,2]
[349832706,1737455446215,-2685.0,0.00020171,2]
[349832708,1737455446224,-1519.25,0.00020171,2]
[349832710,1737455446234,-500.0,0.00020171,2]
[349832712,1737455446244,-1429.36,0.00020171,2]
[349832714,1737455446253,-500.0,0.00020171,2]
[349832716,1737455446262,-500.0,0.00020171,2]
[349832718,1737455446272,-572.22,0.00020171,2]
[349832720,1737455446281,-396.09643431,0.00020202,2]
[349832722,1737455446290,-1208.63,0.0002021,2]
[349832724,1737455446300,-720.29,0.0002021,2]
[349832726,1737455446309,-1135.55,0.0002021,2]
[349832728,1737455446319,-500.0,0.0002021,2]
[349832730,1737455446327,-5596.85,0.0002021,2]
[349832732,1737455446337,-500.0,0.0002021,2]
[349832734,1737455446346,-500.0,0.0002021,2]
[349832736,1737455446355,-516.225877,0.0002021,2]
[349832738,1737455446365,-500.0,0.0002021,2]
[349832740,1737455446374,-786.72,0.0002021,2]
[349832742,1737455446383,-771.63,0.0002021,2]
[349832744,1737455446394,-543.76,0.0002021,2]
[349832746,1737455446404,-1177.6,0.0002021,2]
[349832748,1737455446413,-798.31,0.0002021,2]
[349832750,1737455446425,-358.333386,0.0002021,2]
[349832752,1737455446438,-1292.4,0.0002021,2]
[349832754,1737455446450,-941.38,0.0002021,2]
[349832756,1737455446460,-500.0,0.0002021,2]
[349832758,1737455446470,-500.0,0.0002021,2]
[349832760,1737455446480,-160.021937,0.0002021,2]
[349832762,1737455446489,-2147.55,0.0002021,2]
[349832764,1737455446499,-1700.18,0.0002021,2]
[349832766,1737455446511,-801.99,0.0002021,2]
[349832768,1737455446522,-987.08,0.0002021,2]
[349832771,1737455446531,-1814.27,0.0002021,2]
[349832773,1737455446541,-2064.99,0.0002021,2]
[349832774,1737455446551,-500.0,0.0002021,2]
[349832776,1737455446560,-500.0,0.0002021,2]
[349832779,1737455446570,-551.16,0.0002021,2]